Cogmind - Beta 16 @@@ ROGUE MODE // 2026.01.03 @ 03:53:36 Player: C4PT41N Result: Destroyed by S-10 Pest with Light Assault Rifle Performance ------------- Evolutions (2) 1000 Regions Visited (3) 600 Robots Destroyed (41) 205 Value Destroyed (1400) 1400 Prototype IDs (4) 80 Alien Tech Used (0) 0 Bonus (0) 0 TOTAL SCORE: 3285 Bonus ------- None Cogmind --------- Core Integrity 0/550 Matter 272/300 Energy 219/300 System Corruption 12% Temperature Hot (227) Movement Core (50) Location -8/Materials Parts ------- > --- POWER (1) -------- (None) > --- PROPULSION (4) --- (None) > --- UTILITY (4) ------ Compact Battery Improved Signal Interpreter > --- WEAPON (2) ------- Precision Beam Rifle > --- INVENTORY (5) ---- Improved Heat Sink Advanced Weight Redist. System Sensor Array Propulsion Shielding Faulty Precision Beam Rifle Peak State ------------ > --- POWER ------------ Light Deuterium Engine > --- PROPULSION ------- Compact Wheel Compact Wheel Compact Wheel Compact Wheel > --- UTILITY ---------- Sensor Array Improved Signal Interpreter Improved Terrain Scan Processor Particle Charger > --- WEAPON ----------- EM Pulse Cannon EM Pulse Cannon > --- INVENTORY -------- Light Nuclear Core Propulsion Shielding [Rating: 23] Favorites ----------- Power Light Nuclear Core Engine Ion Engine Power Core Light Nuclear Core Propulsion Compact Wheel Leg Aluminum Leg Wheel Compact Wheel Flight Unit Improved Flight Unit Utility Signal Interpreter Device Seismic Detector Storage Compact Battery Processor Signal Interpreter Protection Propulsion Shielding Weapon Mini Grenade Launcher Energy Gun Particle Gun Energy Cannon EM Pulse Cannon Ballistic Gun Assault Rifle Launcher Mini Grenade Launcher Build | -11 -10 -9 -8 ------- Run | Yrd Mat Mat Mat Slots Evolved 4 | . . 2 2 Power . | . . . . Propulsion 2 | . . 1 1 Utility 2 | . . 1 1 Weapon . | . . . . Parts Attached 46 | 6 11 . 29 Power 5 | 1 1 . 3 Engine 2 | 1 . . 1 Core 3 | . 1 . 2 Reactor . | . . . . Propulsion 12 | 2 3 . 7 Treads . | . . . . Leg 2 | 2 . . . Wheel 6 | . . . 6 Hover . | . . . . Flight 4 | . 3 . 1 Utility 12 | 1 3 . 8 Device 5 | . 2 . 3 Storage 2 | 1 . . 1 Processor 4 | . 1 . 3 Hackware . | . . . . Protection 1 | . . . 1 Artifact . | . . . . Weapon 17 | 2 4 . 11 Energy Gun 5 | 1 . . 4 Energy Cannon 6 | . . . 6 Ballistic Gun 1 | 1 . . . Ballistic Cannon . | . . . . Launcher 5 | . 4 . 1 Special Weapon . | . . . . Impact Weapon . | . . . . Slashing Weapon . | . . . . Piercing Weapon . | . . . . Special Melee Weapon . | . . . . Unidentified Prototypes 4 | . 1 . 3 Corrupted Parts 2 | . . . 2 System Corruption 12 | . . . 12 Parts Lost 26 | . 3 . 23 Power 4 | . 1 . 3 Propulsion 8 | . . . 8 Utility 5 | . 1 . 4 Weapon 9 | . 1 . 8 Highest Loss Streak 10 | . 1 . 10 To Critical Strikes 1 | . . . 1 Average Backups 3 | . 4 5 2 Power . | . . 1 . Propulsion . | . . 2 . Utility 1 | . 1 . 1 Weapon 1 | . 1 2 . Tool/Special . | . . . . Unused Backups 8 | . 6 . 2 Power 1 | . 1 . . Propulsion 3 | . 3 . . Utility 3 | . 1 . 2 Weapon 1 | . 1 . . Tool/Special . | . . . . Average Slot Usage (%) 66 | . 67 33 69 Engine 3 | . 5 . 2 Core 2 | . 1 . 3 Leg 3 | . 6 . . Wheel 8 | . . . 19 Flight 9 | . 13 11 4 Device 11 | . 12 11 11 Storage 3 | . 3 . 3 Processor 11 | . 10 11 11 Energy Gun 1 | . . . 3 Energy Cannon 2 | . . . 6 Ballistic Gun 1 | . 3 . . Launcher 5 | . 9 . 1 Peak Build Rating 23 | 6 15 6 23 Average Rating 11 | 4 7 6 16 On Entrance 4 | . 6 6 6 Avg Prop Armor Cover (%) 3 | . . . 3 Naked Turns . | . . . . Heaviest Build 21 | 14 16 1 21 Greatest Support 64 | 20 20 5 64 Greatest Overweight (x) 5 | . 5 . 5 Average Overweight (x) . | . . . . Largest Inventory Capacity 8 | 8 8 5 5 Average Capacity 5 | 7 5 5 5 Most Carried 8 | 1 8 5 5 Average Carried 3 | . 4 5 2 Final Capacity 8 | 8 5 5 5 Final Carried 5 | 1 5 5 5 Class Distribution -------------------- 100% | Mutant Dominant Class ---------------- Mutant | -10/Materials Mutant | -9/Materials Mutant | -8/Materials Resources | -11 -10 -9 -8 ----------- Run | Yrd Mat Mat Mat Matter Collected 1180 | 225 289 . 666 Remotely . | . . . . Salvage Created 1075 | . 306 . 769 Parts 66 | . 28 . 38 Haulers Intercepted 1 | . . . 1 Recyclers Shooed 1 | . . . 1 Parts Field Recycled . | . . . . Retrieved Matter . | . . . . Parts Self-Destructed . | . . . . Prevented . | . . . . Parts Restored . | . . . . Kills | -11 -10 -9 -8 ------- Run | Yrd Mat Mat Mat Combat Hostiles Destroyed 27 | . 10 . 17 Guns 2 | . . . 2 Cannons 6 | . . . 6 AOE 18 | . 10 . 8 Classes Destroyed 10 | . 6 . 4 Worker 2 | . 2 . . Builder 2 | . 1 . 1 Hauler 1 | . . . 1 Recycler 1 | . 1 . . Operator 2 | . 2 . . Watcher 6 | . 3 . 3 Swarmer 3 | . . . 3 Grunt 18 | . 10 . 8 Sentry 5 | . . . 5 Hunter 1 | . . . 1 Best Kill Streak 5 | . 4 . 5 Combat Bots Only 4 | . 2 . 4 Max Kills in Single Turn 3 | . 2 . 3 Gunslinging . | . . . . Exploded 3 | . 2 . 3 Melee . | . . . . Uniques/NPCs Destroyed . | . . . . Combat | -11 -10 -9 -8 -------- Run | Yrd Mat Mat Mat Hostile Shots Fired 262 | . 54 4 204 Missed 93 | . 17 4 72 Hits 169 | . 37 . 132 Projectile 169 | . 37 . 132 Critical Strikes 2 | . . . 2 Damage Taken 2090 | . 508 . 1582 Core 747 | . 194 . 553 Absorbed by Shields . | . . . . Core Remaining (%) 74 | 100 22 100 . Volleys Fired 107 | . 39 . 68 Largest 2 | . 2 . 2 Hottest 130 | . 70 . 130 Shots Fired 155 | . 64 . 91 Gun 67 | . 27 . 40 Cannon 42 | . . . 42 Launcher 46 | . 37 . 9 Special . | . . . . Kinetic 25 | . 25 . . Thermal 42 | . 2 . 40 Explosive 46 | . 37 . 9 Electromagnetic 42 | . . . 42 Robot Hit Streak 12 | . 4 . 12 Robot Miss Streak 4 | . 4 . 3 Penetration Max . | . . . . Secondary Targets . | . . . . Shots Hit Robots 67 | . 18 . 49 Core Hits 67 | . 31 . 36 Critical Kills . | . . . . Critical Parts Destroyed . | . . . . Critical Strikes 4 | . . . 4 Burn 2 | . . . 2 Corrupt 2 | . . . 2 Melee Attacks . | . . . . Impact . | . . . . Slashing . | . . . . Piercing . | . . . . Sneak Attacks . | . . . . Combat Hostiles . | . . . . Follow-up Attacks . | . . . . Damage Inflicted 3483 | . 1729 . 1754 Guns 472 | . 132 . 340 Cannons 841 | . . . 841 Explosions 2156 | . 1597 . 559 Melee . | . . . . Ramming 14 | . . . 14 Kinetic 132 | . 132 . . Thermal 439 | . . . 439 Explosive 2057 | . 1597 . 460 Electromagnetic 841 | . . . 841 Impact . | . . . . Slashing . | . . . . Piercing . | . . . . Highest Corruption 12 | . . . 12 Average Corruption 11 | . . . 11 Corruption Purged . | . . . . Corruption Blocked . | . . . . Effects 47 | . . . 47 Message Errors 6 | . . . 6 Matter Fused 5 | . . . 5 Heat Flow Errors 9 | . . . 9 Energy Discharges 8 | . . . 8 Parts Rejected 2 | . . . 2 Parts Fused 1 | . . . 1 Data Loss (minor) 7 | . . . 7 Data Loss (major) 2 | . . . 2 Misfires 5 | . . . 5 Misdirections 1 | . . . 1 Weapon Failures 1 | . . . 1 Overload Shots . | . . . . Overflow Damage 70 | . 30 . 40 Projectiles 29 | . . . 29 Explosions 41 | . 30 . 11 Melee . | . . . . Knockbacks . | . . . . Impact . | . . . . Kinetic . | . . . . Secondary . | . . . . Self-Inflicted Damage 165 | . 107 . 58 Shots 7 | . 5 . 2 Rammed 3 | . . . 3 Targets Rammed 3 | . . . 3 Kicked . | . . . . Crushed . | . . . . Highest Temperature 490 | . 465 . 490 Average Temperature 101 | . 76 . 108 Received Heat Transfer 600 | . 177 . 423 Effects 5 | . 1 . 4 Shutdowns 3 | . 1 . 2 Energy Bleed 1 | . . . 1 Damage (minor) 1 | . . . 1 Siege Activations . | . . . . Martial Activations . | . . . . Shielding Activations . | . . . . Robots Disrupted . | . . . . Combat Hostiles . | . . . . Robots Corrupted . | . . . . Combat Hostiles . | . . . . Parts Fried 3 | . . . 3 Impact Corruptions . | . . . . Robots Melted 1 | . . . 1 Combat Hostiles 1 | . . . 1 Parts Melted 2 | . . . 2 Heat Transferred 988 | . . . 988 Parts Sabotaged . | . . . . Parts Stolen . | . . . . Parts Stripped . | . . . . Power Chain Reactions 2 | . . . 2 Alert | -11 -10 -9 -8 ------- Run | Yrd Mat Mat Mat Maximum Alert Level 1 | . 1 . 1 Low Security (%) 88 | 100 87 100 87 Level 1 11 | . 12 . 12 Level 2 . | . . . . Level 3 . | . . . . Level 4 . | . . . . Level 5 . | . . . . High Security . | . . . . Max Security . | . . . . Peak Influence 388 | . 388 25 335 Initial . | . . . . Average 97 | . 92 7 117 Influence Increases 1542 | . 620 71 851 Destroy 0b10 Robot/C 540 | . 200 . 340 Destroy 0b10 Robot/NC 70 | . 45 . 25 Destroy Leader 154 | . 46 . 108 Successful Hack 38 | . 9 11 18 Disable Machine 240 | . 195 . 45 Destroy Structure 185 | . 125 . 60 Partial Spotted 135 | . . 60 75 Lose Combat Pursuer 180 | . . . 180 Influence Decreases 1528 | . 620 71 837 Time Decay 978 | . 440 71 467 Lost Part 250 | . 30 . 220 Purge Threat 300 | . 150 . 150 Squads Dispatched 6 | . 2 . 4 Investigation 3 | . 1 . 2 Extermination . | . . . . Reinforcement 2 | . 1 . 1 Assault . | . . . . Garrison 1 | . . . 1 Intercept . | . . . . Searches Triggered . | . . . . Construction Impeded . | . . . . Haulers Reinforced . | . . . . Active Scanning Responses . | . . . . Cargo Convoy Interrupts . | . . . . Stealth | -11 -10 -9 -8 --------- Run | Yrd Mat Mat Mat Distress Signals 5 | . 2 2 1 Communications Jammed . | . . . . Distress Signals . | . . . . Times Spotted 66 | . 19 7 40 Peak Tracking Total 7 | . 4 6 7 Tactical Retreats 6 | . . . 6 Traps | -11 -10 -9 -8 ------- Run | Yrd Mat Mat Mat Traps Triggered 1 | . 1 . . Indirectly . | . . . . Trap Hack Attempts . | . . . . Triggered . | . . . . Disarmed . | . . . . Reprogrammed . | . . . . Reused . | . . . . Traps Extracted . | . . . . Installed . | . . . . Triggered . | . . . . Machines | -11 -10 -9 -8 ---------- Run | Yrd Mat Mat Mat Machines Disabled 16 | . 13 . 3 Max in Single Turn 2 | . 2 . 1 Machines Repaired . | . . . . Machines Dismantled . | . . . . Machines Sabotaged . | . . . . Overloaded Fab Kills . | . . . . Hacking | -11 -10 -9 -8 --------- Run | Yrd Mat Mat Mat Machines Accessed 15 | . 7 3 5 Terminals 13 | . 6 3 4 Fabricators . | . . . . Repair Stations . | . . . . Recycling Units 2 | . 1 . 1 Scanalyzers . | . . . . Garrison Access . | . . . . Total Hacks 46 | . 14 13 19 Successful 26 | . 9 7 10 Failed 20 | . 5 6 9 Catastrophic 1 | . 1 . . Database Lockouts . | . . . . Manual 25 | . 5 8 12 Terminals 39 | . 11 13 15 Fabricators . | . . . . Repair Stations . | . . . . Recycling Units 7 | . 3 . 4 Scanalyzers . | . . . . Garrison Access . | . . . . Terminal Hacks 14 | . 4 4 6 Record 2 | . . . 2 Emergency Access Points 1 | . . 1 . Alert Level 5 | . 2 1 2 Unreport Threat 2 | . 1 . 1 Maintenance Status 1 | . 1 . . Reinforcement Status 1 | . . 1 . Zone Layout 2 | . . 1 1 Fabricator Hacks . | . . . . Repair Station Hacks . | . . . . Recycling Unit Hacks 5 | . 2 . 3 Recycle Component 3 | . 1 . 2 Process 1 | . . . 1 Retrieve Matter 1 | . 1 . . Scanalyzer . | . . . . Garrison Access Hacks . | . . . . Unauthorized Hacks 7 | . 3 3 1 Terminals 7 | . 3 3 1 Track 7 | . 3 3 1 Fabricators . | . . . . Repair Stations . | . . . . Recycling Units . | . . . . Scanalyzers . | . . . . Garrison Access . | . . . . Data Cores Recovered . | . . . . Used . | . . . . Hacking Detections 11 | . 4 3 4 Full Trace Events 6 | . 2 1 3 Feedback Events . | . . . . Feedback Blocked . | . . . . Robot Schematics Acquired . | . . . . Robots Built . | . . . . Authchips . | . . . . Time . | . . . . Total Robot Build Rating . | . . . . Part Schematics Acquired . | . . . . Parts Built . | . . . . Authchips . | . . . . Time . | . . . . Total Part Build Rating . | . . . . Part Studies Acquired . | . . . . Parts Repaired . | . . . . Time . | . . . . Parts Recycled 3 | . 1 . 2 Recycled Matter 142 | . . . 142 Retrieved Matter . | . . . . Retrieved Components . | . . . . Parts Scanalyzed . | . . . . Part Schematics Acquired . | . . . . Parts Damaged . | . . . . Bothacking | -11 -10 -9 -8 ------------ Run | Yrd Mat Mat Mat Used RIF Installer . | . . . . Robots Hacked . | . . . . Non-combat . | . . . . Combat . | . . . . Robot Hacks Applied . | . . . . Relay Couplers Released . | . . . . Fabnet Peak Effective % . | . . . . Robots Rewired . | . . . . Allies Hacked . | . . . . Hacks Repelled . | . . . . Allies | -11 -10 -9 -8 -------- Run | Yrd Mat Mat Mat Total Allies . | . . . . Largest Group . | . . . . Highest-Rated Group . | . . . . Highest-Rated Ally . | . . . . Total Orders . | . . . . Ally Attacks . | . . . . Total Damage . | . . . . Kills . | . . . . Allies Corrupted . | . . . . Allies Melted . | . . . . Intel | -11 -10 -9 -8 ------- Run | Yrd Mat Mat Mat Active Infowar (turns) 3317 | . 1712 190 1415 Sensors 1325 | . 178 . 1147 Seismic 1994 | . 1536 190 268 Robot Analysis Total . | . . . . Derelict Logs Recovered . | . . . . Drone Launches . | . . . . Drone Recoveries . | . . . . Exploration | -11 -10 -9 -8 ------------- Run | Yrd Mat Mat Mat Turns Passed 3858 | 68 1872 190 1728 Spaces Moved 3843 | 55 1926 336 1526 Core 98 | 10 1 . 87 Treads . | . . . . Legs 170 | 45 125 . . Wheels 872 | . . . 872 Hover . | . . . . Flight 2703 | . 1800 336 567 Fastest Speed 34 | 50 37 40 34 Average Speed 61 | 107 49 40 78 Slowest Speed 300 | 120 300 40 300 Overloaded Moves . | . . . . Propulsion Burnouts . | . . . . Robots Hopped 28 | . 18 1 9 Potential Cave-ins . | . . . . Cave-ins Triggered . | . . . . Exploration Rate (%) 47 | 3 99 22 65 Regions Visited 3 Branch Regions . Pre-discovered Areas . | . . . . Known Exits Taken 2 | . 1 1 . Unknown Exits Taken 1 | 1 . . . Scrap Searched . | . . . . Spaces Dug . | . . . . Terrain Destroyed 211 | . 153 . 58 Melee . | . . . . Projectile . | . . . . AOE 211 | . 153 . 58 Terrain Rammed . | . . . . Walls Destroyed . | . . . . Machines Disabled . | . . . . Actions | -11 -10 -9 -8 --------- Run | Yrd Mat Mat Mat Total 5157 | 61 2759 389 1948 Wait 1144 | . 777 55 312 Move 3784 | 54 1889 333 1508 Hop 28 | . 18 1 9 Pick Up 18 | 1 12 . 5 Fast Attach 40 | 6 9 . 25 Attach 7 | . 1 . 6 Detach 7 | . 2 . 5 Swap 7 | . 2 . 5 Drop 12 | . 10 . 2 Fire 107 | . 39 . 68 Melee . | . . . . Ram 3 | . . . 3 Kick . | . . . . Crush . | . . . . Escape Stasis . | . . . . Rewire . | . . . . Trap . | . . . . Miscellaneous . | . . . . Route ------- -11/Scrapyard -10/Materials (discovered 5 exits: *Mat x3 / [*Min] / [*Sub]) -9/Materials -8/Materials (discovered 2 exits: *Fac / *Sto) History --------- Turn | Location | Event 5 | -11/Scrapyard | Discovered new exit (range 15) 69 | -11/Scrapyard | Entered Materials 311 | -10/Materials | Build established: Mutant 482 | -10/Materials | Discovered new exit (range 16) 697 | -10/Materials | Discovered new exit (range 16) 703 | -10/Materials | Identified exit to Materials 818 | -10/Materials | Discovered exit to Materials (range 16) 830 | -10/Materials | Core integrity fell below 50% 1016 | -10/Materials | Discovered exit to Materials (range 15) 1531 | -10/Materials | Discovered new exit (range 8) 1941 | -10/Materials | Entered another Materials area 1941 | -9/Materials | Evolved 2 slots: Propulsion x1, Utility x1 2128 | -9/Materials | Discovered new exit (range 3) 2130 | -9/Materials | Identified exit to Materials 2131 | -9/Materials | Entered another Materials area 2131 | -8/Materials | Evolved 2 slots: Propulsion x1, Utility x1 2481 | -8/Materials | Garrison activated, responded to threat 2685 | -8/Materials | System corruption reached 10% 2686 | -8/Materials | Lost 4 parts (1p1u2w) 3552 | -8/Materials | Discovered new exit (range 13) 3619 | -8/Materials | Discovered new exit (range 15) 3646 | -8/Materials | Core integrity fell below 50% 3715 | -8/Materials | Identified exit to Factory 3749 | -8/Materials | Identified exit to Storage 3850 | -8/Materials | Core integrity fell below 20% 3859 | -8/Materials | Destroyed by S-10 Pest with Light Assault Rifle Last Messages --------------- 03841_ System corrupted: Matter fused (-8). 03842_ Com. Wheel destroyed. 03845_ Particle Gun destroyed. 03845_ K-01 Serf collects debris. 03847_ Wheel destroyed. 03848_ R-06 Scavenger collects Sml. Matter Pod. 03849_ K-01 Serf collects debris. 03850_ Acquired Prototype Energy Cannon. 03850_ Identified Adv. Beam Cannon. 03850_ Faulty integration damages Faulty Adv. Beam Cannon (-66). 03854_ K-01 Serf collects debris. 03855_ Acquired Prototype Energy Gun. 03855_ Identified Prc. Beam Rifle. 03855_ Critical hit (Destroy). 03855_ Faulty Adv. Beam Cannon destroyed. 03857_ Acquired Faulty Prc. Beam Rifle. 03857_ Faulty integration triggers heat surge (+289). 03857_ K-01 Serf collects debris. Map ----- +----------------------------------------------------+ | ??????????????????????????????????######+### + | | ??????????????????????????????????# # # | | ??????????????????????????????????# # ### | | ??????????????????????????????????# """ # ## | | ??????????????????????????????????#""""" # ## | | ??????????????????????????????????#""""" + ## | | ??????????????????????????????????#""""" # ## | | ??????????????????????????????????# """ # | | ??????????????????????????????????# ] # | | ??????????????????????????????????# # | | ??????????????????????????????????########## | | ?????????? ????????????????????????????????# | | ?????????? ????????????????????????????????####### | | ?????????? ???????????????????????????????????# | | ?????????? ???????????????????????????????????# "" | | ??????????# ??????????????????????????????????# "Y | | ??????????# ??????????????????????????????????# | | ??????????# ??????????????????????????????????#### | | ??????????# ?????????????????????????????????????# | | ??????????# ?????????????????????????????????????# | | ??????????# ????????????????????????????????????## | | ??????????# ????????????????????????????????????## | | ######### ###################?????????????????## | | ]! #?????????????????## | | ! ##############????## | | ][@ # #????## | | kYs s k# #?##### | | *s s # #?# | | ##########+###### a # ### | | ???????# %%% ## !!= # %/% | | ???????# ## !!= # ### | | ???????# """ ## !! # #?# | | ???????# """ k + #?# | | ???????# """ !! ## # #?# | | ???????# !! ## = # #?# | | ???????# ! ## # #?# | | ???????# ## # #?# | | ???????############ /##############?# | | ??????????# ]]] + "T" #??????????????# | | ?????????# ]]] # ##### #??????????????# | | ?????????##[ ]]??# #???# #######??# ## | | ??????????####????# #???# #??# # | | ??????????######### #####+#+#+##### #??# # | | ??????????# ## ## = # ???# + | | ??????????# ## ## # ???# # | | ??????????# [/ ## ## # #??# # | | ??????????# // ## ## # #??# # | | ??????????# ## ## """ """ # #??###### | | ???????????? ?# ## """ """ # #???????### | | ????????????##+##?# ## """ """ # #?????????# | +----------------------------------------------------+ Best States ------------- Heat Dissipation 31 Energy Generation 14 Energy Capacity 360 Matter Stores 300 Matter Capacity 300 Sight Range 16 Robot Scan Range 15 Terrain Scan Density 110 Propulsion Shielding 33 Evasion (%) 63 Particle Charging 15 Item Schematics ----------------- None Robot Schematics ------------------ None Fabricated ------------ Nothing Repaired ---------- Nothing Studied --------- None Alien Tech Used ----------------- None Achievements -------------- Ghost 'Em I Spy Challenges ------------ None Game ------ Seed ScanThrusterMultitool Manual? 0 Play Time 00:52:34 Cumulative 10.3 hours Start 2026.01.03 @ 03:01:33 End 2026.01.03 @ 03:53:36 Sessions 1 Manual Loads 0 Difficulty Rogue Special Mode None Game No. 11 Rogue 11 Adventurer 0 Explorer 0 Win Type - Total 0 Types 0/0/0/0/0/0/0/0/0/0 Lore% 15 Gallery% 11 Achievement% 13 Wizard Run 0 Options --------- Layout 1 ASCII 0 Keyboard 0 Movement Arrows Keybinds 0 Fullscreen 2 Font 24/Crisp Map View 50x35 Zoom Use 0% Tactical HUD 1 Map Filters NONE Filters NONE Steam 1 RUN: bcb3b188-4d65-452d-85b1-8170142a94d4